bitfinex/quotes_SOLUSD_20240625
["timestamp","ask_amount","ask_price","bid_price","bid_amount"]
[1719284918078,6.7065,134.2,134.14,23.4827]
[1719284918279,100.0,134.23,134.14,16.7734]
[1719284918458,6.7074,134.18,134.11,16.777]
[1719284918657,200.0,134.21,134.11,16.777]
[1719284918971,16.6423,134.24,134.08,16.7808]
[1719284918972,6.709,134.15,134.08,16.7808]
[1719284919172,100.0,134.18,134.08,16.7808]
[1719284919364,6.7088,134.16,134.09,6.7118]
[1719284919562,6.7088,134.16,134.1,6.7112]
[1719284919961,6.7089,134.15,134.09,6.7118]
[1719284920166,100.0,134.16,134.07,6.7127]
[1719284920679,6.7107,134.12,134.06,6.7133]
[1719284920852,100.0,134.15,134.07,6.7127]
[1719284921052,6.7094,134.14,134.08,6.7121]
[1719284921577,6.7093,134.15,134.09,6.7117]
[1719284921786,6.7099,134.13,134.07,23.4939]
[1719284922151,6.7095,134.14,134.08,6.7122]
[1719284922414,6.71,134.13,134.07,23.4942]
[1719284922561,100.0,134.16,134.07,16.7814]
[1719284922770,106.7088,134.16,134.07,16.7814]
[1719284922961,100.0,134.17,134.07,16.7814]
[1719284923158,6.2338,134.2,134.02,33.5759]
[1719284923159,106.2338,134.2,134.11,6.7108]
[1719284923371,6.7076,134.18,134.12,6.7103]
[1719284923568,6.708,134.17,134.1,16.7785]
[1719284923777,6.7085,134.16,134.1,23.4898]
[1719284924169,6.7085,134.16,134.1,16.7785]
[1719284924484,6.7079,134.17,134.1,23.4898]
[1719284924780,6.7086,134.16,134.1,23.4898]
[1719284924981,6.7079,134.17,134.11,6.7106]
[1719284925564,100.0,134.18,134.07,16.7817]
[1719284925769,6.7085,134.16,134.1,6.7109]
[1719284926084,16.7673,134.19,134.09,16.7787]
[1719284926085,100.0,134.19,134.09,16.7787]
[1719284926294,6.7098,134.14,134.08,6.7123]
[1719284926767,100.0,134.16,134.08,16.7802]
[1719284926967,6.71,134.13,134.07,6.7127]
[1719284927162,6.7109,134.11,134.05,16.7843]
[1719284927376,6.7109,134.11,134.05,23.4981]
[1719284927684,6.7096,134.14,134.08,6.7123]
[1719284927989,6.2338,134.2,134.06,33.5663]
[1719284927990,6.7091,134.15,134.09,6.7118]
[1719284928197,100.0,134.19,134.08,16.7802]
[1719284928492,6.7084,134.16,134.08,16.7802]
[1719284928788,6.2338,134.2,134.06,33.5659]
[1719284929084,6.7079,134.17,134.11,6.7108]
[1719284929285,6.7084,134.16,134.1,6.7113]
[1719284929498,100.0,134.17,134.09,16.7792]
[1719284929795,6.71,134.13,134.07,6.7128]
[1719284929991,100.0,134.16,134.06,16.7835]
[1719284930185,6.7099,134.13,134.07,6.7125]
[1719284930486,106.7088,134.16,134.09,6.7116]
[1719284930785,6.709,134.15,134.09,6.7116]
[1719284931183,6.7094,134.14,134.08,23.4925]
[1719284931564,6.7101,134.13,134.08,16.7803]
[1719284931960,6.7105,134.12,134.06,6.7133]
[1719284932458,6.7099,134.13,134.07,6.7128]
[1719284932900,200.0,134.17,134.07,16.7816]
[1719284933087,232.86,134.19,133.99,54.876679]
[1719284933271,107.79625211,134.21,134.06,33.5657]
[1719284933467,100.0,134.21,134.14,16.7727]
[1719284933666,100.0,134.21,134.11,16.7766]
[1719284933972,6.707,134.19,134.13,6.7098]
[1719284934165,6.707,134.19,134.11,16.7766]
[1719284934166,6.7074,134.18,134.12,6.7102]
[1719284934664,6.7079,134.17,134.11,16.7766]
[1719284934863,100.0,134.17,134.08,16.7807]
[1719284935076,100.0,134.17,134.1,16.7779]
[1719284935298,6.709,134.15,134.09,6.7118]
[1719284935481,106.709,134.15,134.09,6.7118]
[1719284935678,6.709,134.15,134.1,6.7113]
[1719284935879,6.7084,134.16,134.1,6.7113]
[1719284936893,200.0,134.17,134.09,23.4906]
[1719284937085,100.0,134.15,134.09,23.4906]
[1719284937479,106.7089,134.15,134.09,23.4906]
[1719284937678,6.7096,134.14,134.07,6.7124]
[1719284937879,100.0,134.15,134.07,6.7124]
[1719284938185,100.0,134.16,134.06,23.4961]
[1719284938186,100.0,134.14,134.06,23.4961]
[1719284938389,6.7104,134.12,134.07,6.7128]
[1719284938584,6.7104,134.12,134.06,16.7829]
[1719284938585,6.7106,134.12,134.06,16.7829]
[1719284938790,200.0,134.14,134.06,16.7829]
[1719284939092,200.0,134.14,134.07,6.7128]
[1719284939284,6.71,134.13,134.07,6.7128]
[1719284939685,6.71,134.13,134.07,6.7125]
[1719284940275,6.7104,134.12,134.06,23.4961]
[1719284940473,6.7099,134.13,134.07,6.7128]
[1719284940703,6.7104,134.12,134.07,6.7128]
[1719284940894,6.711,134.11,134.06,16.7829]
[1719284941191,100.0,134.16,134.09,16.7797]
[1719284941973,100.0,134.16,134.08,6.7122]
[1719284942173,6.7094,134.14,134.08,6.7122]
[1719284942392,6.7094,134.14,134.09,6.7118]
[1719284942706,6.7094,134.14,134.06,16.7831]
[1719284942867,106.7087,134.16,134.08,16.7801]
[1719284943074,6.709,134.15,134.09,6.7115]
[1719284943379,100.0,134.18,134.11,6.7106]
[1719284943697,200.0,134.16,134.07,16.782]
[1719284944069,6.7109,134.11,134.02,33.5759]
[1719284944277,100.0,134.13,134.06,6.7132]
[1719284944278,6.7104,134.12,134.06,6.7132]
[1719284944692,6.711,134.11,134.04,16.7855]
[1719284944873,6.711,134.11,134.02,33.5759]
[1719284944874,6.7122,134.09,134.02,6.7152]
[1719284945076,6.7122,134.09,134.01,16.7894]
[1719284945298,100.0,134.11,134.03,6.7148]
[1719284945496,6.7119,134.09,134.03,6.7147]
[1719284946179,200.0,134.11,134.03,6.7147]
[1719284946500,100.0,134.13,134.09,6.7116]
[1719284946687,6.7111,134.11,134.0,33.5805]
[1719284946882,6.7104,134.12,134.04,16.7858]
[1719284947074,115.7066,134.16,134.01,0.17]
[1719284947075,15.7066,134.16,134.01,0.17]
[1719284947275,15.7066,134.16,134.08,16.7802]
[1719284947572,6.7089,134.15,134.08,16.7802]
[1719284948072,6.7089,134.15,134.09,6.7117]
[1719284948297,6.7098,134.14,134.08,23.4923]
[1719284948486,6.7099,134.13,134.08,23.4923]
[1719284948795,6.71,134.13,134.08,16.7802]
[1719284948997,6.71,134.13,134.01,0.17]
[1719284948998,100.0,134.13,134.05,16.7841]
[1719284949293,6.711,134.11,134.06,6.713]
[1719284949497,6.7115,134.1,134.05,16.7841]
[1719284949679,100.0,134.1,134.05,23.4978]
[1719284949994,6.7114,134.1,134.04,6.714]
[1719284950204,200.0,134.11,134.04,16.7854]
[1719284950400,23.3299,134.12,134.03,16.7867]
[1719284950578,6.711,134.11,134.05,6.7139]
[1719284950878,6.7116,134.1,134.04,6.7139]
[1719284951709,231.9394,134.19,134.09,6.7115]
[1719284952011,131.9394,134.19,134.1,6.7112]
[1719284952300,131.9394,134.19,134.0,32.86]
[1719284952301,131.9394,134.19,134.11,6.7108]
[1719284952494,6.7074,134.18,134.13,6.7096]
[1719284952681,106.7084,134.16,134.1,6.7109]
[1719284952879,100.0,134.18,134.12,6.71]
[1719284953074,106.7078,134.18,134.12,6.71]
[1719284953302,6.7079,134.17,134.11,23.4871]
[1719284953599,100.0,134.19,134.11,23.4871]
[1719284953600,106.7084,134.16,134.11,23.4871]
[1719284953807,6.7089,134.15,134.1,6.7113]
[1719284954011,6.7089,134.15,134.09,6.7117]
[1719284954192,23.1708,134.2,134.08,16.7804]
[1719284954193,106.7094,134.14,134.08,16.7804]
[1719284954510,6.7099,134.13,134.08,23.4924]
[1719284954815,6.709,134.15,134.09,6.7118]
[1719284955308,100.0,134.12,134.05,16.7842]
[1719284955604,106.7104,134.12,134.06,6.7133]
[1719284955811,6.7099,134.14,134.08,6.7121]
[1719284955998,100.0,134.19,134.02,33.5748]
[1719284956202,6.404,134.2,134.11,16.7763]
[1719284956404,100.0,134.21,134.14,6.7091]
[1719284956920,6.7056,134.22,134.13,16.7738]
[1719284957207,115.4307,134.23,134.13,16.7738]
[1719284957384,106.7049,134.23,134.17,6.7074]
[1719284957589,6.7054,134.22,134.16,6.7083]
[1719284958201,106.7049,134.23,134.17,6.7078]
[1719284958410,6.5743,134.24,134.14,33.5455]
[1719284958614,6.7042,134.25,134.19,23.4735]
[1719284958781,6.7044,134.24,134.19,16.7671]
[1719284959296,106.7038,134.26,134.19,23.4738]
[1719284959495,100.0,134.26,134.19,16.7671]
[1719284959885,112.7816,134.28,134.19,16.7671]
[1719284960309,106.7026,134.28,134.22,6.7053]
[1719284961316,106.7026,134.28,134.14,33.5455]
[1719284961317,100.0,134.24,134.19,6.7064]
[1719284961494,100.0,134.24,134.17,16.7693]
[1719284961495,106.7044,134.24,134.18,6.7073]
[1719284961699,107.79159632,134.28,134.19,16.7664]
[1719284961906,107.79159632,134.28,134.14,33.5455]
[1719284961907,100.0,134.28,134.22,16.7632]
[1719284962915,6.7029,134.27,134.22,16.7632]
[1719284963302,6.7029,134.27,134.21,6.7058]
[1719284963607,100.0,134.26,134.21,6.7058]
[1719284963991,100.0,134.28,134.21,16.764]
[1719284964310,100.0,134.28,134.25,6.7038]
[1719284964620,6.6999,134.33,134.27,6.7028]
[1719284964791,6.7004,134.32,134.26,6.7033]
[1719284965114,106.7015,134.3,134.25,16.7586]
[1719284965285,100.0,134.34,134.25,16.7586]
[1719284965609,100.0,134.3,134.25,16.7586]
[1719284965799,100.0,134.3,134.26,6.7029]
[1719284965998,100.0,134.3,134.27,16.7564]
[1719284966213,100.0,134.34,134.27,16.7566]
[1719284966514,100.0,134.32,134.29,16.7539]
[1719284966696,100.0,134.34,134.29,16.7539]
[1719284966903,106.6986,134.36,134.29,23.4557]
[1719284967096,7.5673369,134.37,134.31,6.7006]
[1719284967309,0.8690369,134.37,134.31,16.7512]
[1719284967515,106.6988,134.36,134.3,6.7013]
[1719284967715,106.6988,134.36,134.28,16.7558]
[1719284967716,100.0,134.33,134.28,16.7558]
[1719284968014,106.6989,134.35,134.28,16.7558]
[1719284968225,100.8690369,134.37,134.29,6.7018]
[1719284968396,100.0,134.34,134.28,23.4577]
[1719284968597,100.8690369,134.37,134.28,16.7558]
[1719284968797,106.699,134.35,134.28,23.4577]
[1719284969124,100.0,134.3,134.25,6.7037]
[1719284969430,100.0,134.3,134.12,32.86]
[1719284969728,100.0,134.27,134.23,6.7047]
[1719284970019,106.701,134.31,134.24,6.7042]
[1719284970226,100.0,134.31,134.25,16.7594]
[1719284970715,100.0,134.31,134.27,6.7026]
[1719284970920,100.0,134.31,134.28,6.7023]
[1719284971213,100.0,134.31,134.28,6.7022]
[1719284971417,100.0,134.34,134.29,6.7018]
[1719284971604,112.9673,134.36,134.3,6.7013]
[1719284971796,106.2689,134.36,134.31,6.7009]
[1719284972119,100.0,134.34,134.29,16.7536]
[1719284972604,6.699,134.35,134.29,23.4554]
[1719284972807,100.0,134.34,134.26,23.4617]
[1719284973004,106.6999,134.33,134.27,6.7028]
[1719284973204,100.0,134.35,134.28,16.755]
[1719284973404,100.0,134.35,134.3,6.7013]
[1719284973613,0.8690369,134.37,134.3,16.7527]
[1719284973823,106.6985,134.36,134.3,23.4536]
[1719284974122,106.6985,134.36,134.3,16.7527]
[1719284974123,6.6989,134.35,134.3,16.7527]
[1719284974321,106.6988,134.36,134.3,23.4536]
[1719284974498,100.0,134.36,134.3,16.7527]
[1719284974816,7.5670369,134.37,134.31,6.7008]
[1719284975030,100.0,134.36,134.31,6.7008]
[1719284975408,106.6984,134.36,134.3,23.454]
[1719284975726,100.8690369,134.37,134.26,33.5154]
[1719284975901,0.8690369,134.37,134.27,0.34]
[1719284976223,0.8690369,134.37,134.35,6.6988]
[1719284976396,0.8690369,134.37,134.32,16.7502]
[1719284976830,100.8690369,134.37,134.32,16.7502]
[1719284977022,100.8690369,134.37,134.26,33.5154]
[1719284977023,100.8690369,134.37,134.29,16.7545]
[1719284977213,6.6984,134.36,134.3,6.701]
[1719284977727,100.8690369,134.37,134.31,16.7516]
[1719284977923,100.8690369,134.37,134.32,6.7]
[1719284977924,0.8690369,134.37,134.32,6.7]
[1719284978316,100.0,134.36,134.31,23.4523]
[1719284979106,0.8690369,134.37,134.26,33.5154]
[1719284979317,100.0,134.35,134.28,16.7556]
[1719284979514,0.8690369,134.37,134.31,16.7522]
[1719284979916,0.8690369,134.37,134.33,6.6998]
[1719284980110,0.8690369,134.37,134.35,6.6985]
[1719284980310,0.8690369,134.37,134.33,16.7491]
[1719284980515,0.8690369,134.37,134.3,16.7532]
[1719284980711,100.0,134.36,134.3,16.7532]
[1719284980905,0.8690369,134.37,134.32,6.7001]
[1719284981104,0.8690369,134.37,134.3,16.7532]
[1719284981321,100.8690369,134.37,134.3,16.7532]
[1719284981826,107.5669369,134.37,134.31,6.7005]
[1719284982002,100.8690369,134.37,134.3,16.7532]
[1719284982336,100.8690369,134.37,134.32,6.7003]
[1719284982816,0.8690369,134.37,134.34,6.6993]
[1719284983226,0.8690369,134.37,134.32,23.45]
[1719284983427,0.8690369,134.37,134.33,6.6997]
[1719284984127,0.8690369,134.37,134.32,23.4504]
[1719284985812,100.8690369,134.37,134.32,23.4504]
[1719284986016,0.8690369,134.37,134.33,6.6996]
[1719284986219,0.8690369,134.37,134.34,6.6992]
[1719284986520,0.8690369,134.37,134.33,6.6997]
[1719284987133,100.8690369,134.37,134.32,23.4504]
[1719284987343,0.8690369,134.37,134.32,23.4504]
[1719284988530,100.0,134.36,134.29,16.7541]
[1719284988709,0.8690369,134.37,134.29,33.5089]
[1719284988908,0.8690369,134.37,134.36,6.6984]
[1719284992315,3.69e-05,134.37,134.36,7.0384]
[1719284992517,3.69e-05,134.37,134.36,6.6984]
[1719284993213,3.69e-05,134.37,134.36,40.3605]
[1719284993538,3.69e-05,134.37,134.36,40.1905]
[1719284994031,3.69e-05,134.37,134.36,6.6984]
[1719284996239,3.69e-05,134.37,134.36,40.1905]
[1719284996417,3.69e-05,134.37,134.36,40.3605]
[1719284996617,3.69e-05,134.37,134.36,40.5305]
[1719284998619,3.69e-05,134.37,134.36,40.3605]
[1719284999117,3.69e-05,134.37,134.36,40.1905]
[1719285001554,10.0,134.4,134.39,23.4392]
[1719285003122,10.0,134.4,134.39,23.6092]
[1719285003434,10.0,134.4,134.39,23.4392]
[1719285004028,10.0,134.4,134.37,6.6975]
[1719285004255,10.0,134.4,134.36,16.7459]
[1719285004549,10.0,134.4,134.39,6.6969]
[1719285006650,0.08374096,134.42,134.41,56.9153]
[1719285006949,0.08374096,134.42,134.41,23.4357]
[1719285007352,0.08374096,134.42,134.41,16.7398]
[1719285007546,0.08374096,134.42,134.41,23.4357]
[1719285007925,0.08374096,134.42,134.41,16.7398]
[1719285008341,0.08374096,134.42,134.38,23.4407]
[1719285008632,0.08374096,134.42,134.35,16.7468]
[1719285008633,6.5239,134.4,134.35,16.7468]
[1719285008849,6.5239,134.4,134.39,6.6969]
[1719285009033,6.5239,134.4,134.37,16.744]
[1719285009236,100.0,134.39,134.34,16.748]
[1719285009435,100.0,134.39,134.27,33.5133]
[1719285009631,100.0,134.39,134.31,16.752]
[1719285009833,100.0,134.37,134.31,16.752]
[1719285010041,106.6994,134.34,134.28,23.4578]
[1719285010243,15.4801,134.36,134.26,33.5153]
[1719285010443,22.1787,134.36,134.3,23.4533]
[1719285011737,15.4801,134.36,134.3,23.4533]
[1719285011935,15.4801,134.36,134.3,16.7524]
[1719285012152,15.4801,134.36,134.32,6.7003]
[1719285012358,115.4801,134.36,134.31,6.7008]
[1719285012557,115.4801,134.36,134.32,6.7002]
[1719285012756,115.4801,134.36,134.31,6.7008]
[1719285012948,100.0,134.34,134.3,16.7524]
[1719285013429,100.0,134.34,134.3,23.4537]
[1719285013627,6.6999,134.33,134.27,6.7028]
[1719285013833,106.4734,134.32,134.26,23.4604]
[1719285014054,106.4734,134.32,134.28,16.7547]
[1719285014259,106.4734,134.32,134.28,23.4571]
[1719285014464,106.4734,134.32,134.29,6.7018]
[1719285014635,6.4734,134.32,134.3,16.7523]
[1719285015271,21.9535,134.36,134.32,6.7002]
[1719285015455,21.9535,134.36,134.3,16.7523]
[1719285015634,21.9535,134.36,134.26,33.5145]
[1719285015844,121.9535,134.36,134.32,16.7498]
[1719285016029,128.6521,134.36,134.26,33.5145]
[1719285016237,100.0,134.34,134.29,6.7014]
[1719285016541,128.652,134.36,134.29,6.7014]
[1719285016738,100.0,134.35,134.29,6.7014]
[1719285016974,100.0,134.32,134.28,16.7549]
[1719285017273,100.0,134.32,134.28,23.4572]
[1719285017465,100.0,134.32,134.29,6.7019]
[1719285017781,100.0,134.32,134.28,16.7549]
[1719285017969,100.0,134.3,134.27,6.7025]
[1719285018270,21.9535,134.36,134.26,33.516]
[1719285018480,21.9535,134.36,134.33,16.7494]
[1719285018645,21.9535,134.36,134.34,6.6994]
[1719285018964,21.9535,134.36,134.3,16.7533]
[1719285018965,121.9535,134.36,134.3,16.7533]
[1719285019158,121.9535,134.36,134.31,6.7004]
[1719285019354,128.6519,134.36,134.3,23.4546]
[1719285019675,100.0,134.31,134.26,50.2733]
[1719285020045,100.0,134.35,134.28,16.7549]
[1719285020245,106.6989,134.35,134.29,6.7015]
[1719285020546,106.6989,134.35,134.28,23.4568]
[1719285020547,6.6995,134.34,134.28,23.4568]
[1719285020852,100.0,134.35,134.28,16.7549]
[1719285021268,100.0,134.33,134.28,16.7549]
[1719285021858,100.0,134.33,134.28,23.457]
[1719285022168,100.0,134.33,134.29,6.7018]
[1719285022377,100.0,134.33,134.19,29.8308]
[1719285022378,106.7029,134.27,134.19,29.8308]
[1719285022567,100.0,134.24,134.14,3.74956003]
[1719285023067,100.0,134.24,134.13,15.1499]
[1719285023262,100.0,134.2,134.09,15.1499]
[1719285023458,200.0,134.22,134.17,6.7078]
[1719285023663,100.0,134.19,134.15,6.7084]
[1719285023875,100.0,134.17,134.15,6.7088]
[1719285024053,100.0,134.17,134.14,16.7732]
[1719285024256,100.0,134.2,134.14,6.7094]
[1719285024257,6.1031,134.18,134.14,6.7094]
[1719285024562,6.1031,134.18,134.16,16.771]
[1719285024563,106.1031,134.18,134.16,16.771]
[1719285024763,6.1031,134.18,134.16,16.771]
[1719285025190,5.6031,134.18,134.16,16.771]
[1719285025373,5.6031,134.18,134.14,6.7089]
[1719285025987,100.0,134.17,134.13,16.7744]
[1719285026161,100.0,134.15,134.13,23.4842]
[1719285026357,5.6031,134.18,134.13,23.4842]
[1719285026358,100.0,134.17,134.13,23.4842]
[1719285026666,100.0,134.14,134.13,23.4842]
[1719285026983,100.0,134.16,134.13,16.7744]
[1719285027506,100.0,134.16,134.13,23.4842]
[1719285028476,116.3071,134.17,134.13,16.7744]
[1719285028786,16.3071,134.17,134.15,6.7087]
[1719285029365,16.3071,134.17,134.14,6.7093]
[1719285029787,100.0,134.16,134.13,23.4842]
[1719285030165,100.0,134.14,134.1,6.7113]
[1719285030374,100.0,134.14,134.03,34.0735]
[1719285030375,100.0,134.16,134.11,6.7108]
[1719285030576,123.0154,134.17,134.1,16.7776]
[1719285030577,100.0,134.14,134.1,16.7776]
[1719285030777,100.0,134.14,134.11,6.7105]
[1719285031065,100.0,134.14,134.1,16.7776]
[1719285031266,100.0,134.16,134.1,16.7776]
[1719285031484,100.0,134.16,134.12,6.7103]
[1719285031677,100.0,134.16,134.11,6.7108]
[1719285032568,100.0,134.13,134.11,6.7108]
[1719285033069,100.0,134.13,134.1,16.7776]
[1719285033993,16.3071,134.17,134.13,6.7099]
[1719285034171,116.3071,134.17,134.13,6.7099]
[1719285034379,5.6031,134.18,134.17,6.7079]
[1719285034607,5.6031,134.18,134.16,6.7082]
[1719285034769,12.3106,134.18,134.07,33.5644]
[1719285034973,5.6031,134.18,134.13,16.7747]
[1719285035481,16.3071,134.21,134.15,16.7714]
[1719285035678,16.3071,134.21,134.17,6.7079]
[1719285036077,16.3071,134.21,134.18,6.7073]
[1719285036281,6.4859,134.22,134.17,16.7686]
[1719285036484,6.7045,134.24,134.12,0.5011]
[1719285036695,200.0,134.22,134.12,0.5011]
[1719285036992,33.0676,134.25,134.11,33.5533]
[1719285036993,116.3071,134.25,134.18,16.7681]
[1719285037694,116.3071,134.25,134.2,6.7064]
[1719285037869,123.0113,134.25,134.18,23.4751]
[1719285038071,100.0,134.23,134.19,6.7069]
[1719285038269,6.4859,134.26,134.2,16.765]
[1719285038470,100.0,134.23,134.11,33.5533]
[1719285038779,100.0,134.19,134.16,6.708]
[1719285038982,100.0,134.19,134.14,23.4824]
[1719285039284,100.0,134.19,134.16,6.7082]
[1719285040172,100.0,134.19,134.15,6.7088]
[1719285040380,100.0,134.19,134.11,50.3299]
[1719285040605,6.7074,134.18,134.12,6.7099]
[1719285040771,106.7079,134.17,134.12,6.7099]
[1719285040971,100.0,134.17,134.11,16.7766]
[1719285041502,6.4859,134.18,134.13,6.7097]
[1719285041675,6.4859,134.18,134.14,6.7091]
[1719285042069,6.4859,134.18,134.15,6.7088]
[1719285042272,6.4859,134.18,134.13,23.4834]
[1719285042484,6.4859,134.18,134.13,16.774]
[1719285042688,6.4859,134.18,134.14,6.7093]
[1719285042881,6.4859,134.18,134.13,16.774]
[1719285043093,6.4859,134.18,134.14,6.7093]
[1719285043475,106.4859,134.18,134.13,23.4837]
[1719285043698,106.4859,134.18,134.14,6.7093]
[1719285043905,106.4859,134.18,134.13,23.4838]
[1719285044199,100.0,134.16,134.13,23.4838]
[1719285045677,6.4859,134.18,134.11,33.5543]
[1719285045877,106.4859,134.18,134.13,6.7098]
[1719285046088,100.0,134.16,134.12,16.7757]
[1719285046681,100.0,134.16,134.12,23.486]
[1719285047001,100.0,134.16,134.12,16.7757]
[1719285047595,100.0,134.16,134.12,23.486]
[1719285047785,106.7084,134.16,134.1,6.7113]
[1719285048097,100.0,134.16,134.07,33.5643]
[1719285048316,213.1933,134.18,134.13,6.7098]
[1719285048480,206.4859,134.18,134.11,16.7767]
[1719285048810,100.0,134.14,134.09,6.7115]
[1719285049303,100.0,134.14,134.1,6.7111]
[1719285049490,100.0,134.14,134.08,16.7808]
[1719285050083,100.0,134.14,134.1,6.711]
[1719285050476,100.0,134.16,134.11,6.7109]
[1719285050679,100.0,134.16,134.12,6.7102]
[1719285050879,100.0,134.16,134.1,16.7778]
[1719285051300,100.0,134.14,134.1,23.4888]
[1719285051506,100.0,134.14,134.1,16.7778]
[1719285051676,100.0,134.14,134.05,33.569]
[1719285051677,100.0,134.14,134.09,6.7118]
[1719285051879,100.0,134.15,134.05,33.569]
[1719285052101,100.0,134.16,134.11,6.7105]
[1719285052307,100.0,134.16,134.05,33.569]
[1719285052508,106.7085,134.16,134.11,23.4876]
[1719285052691,100.0,134.17,134.12,6.7103]
[1719285052892,100.0,134.14,134.08,16.7802]
[1719285053594,106.7097,134.14,134.08,23.4921]
[1719285053796,100.0,134.12,134.08,16.7802]
[1719285053998,100.0,134.12,134.11,6.7109]
[1719285054195,100.0,134.12,134.1,6.7113]
[1719285054403,100.0,134.12,134.08,23.4921]
[1719285054708,100.0,134.12,134.09,6.7115]
[1719285054903,100.0,134.12,134.08,16.7802]
[1719285055114,100.0,134.12,134.08,23.4922]
[1719285055422,100.0,134.1,134.06,6.7131]
[1719285055589,100.0,134.1,134.05,6.7138]
[1719285055916,100.0,134.1,134.06,6.7133]
[1719285056109,100.0,134.1,134.05,6.7138]
[1719285056312,100.0,134.1,134.06,6.7132]
[1719285056490,100.0,134.1,134.07,6.7128]
[1719285056891,100.0,134.12,134.07,6.7128]
[1719285057416,106.7105,134.12,134.07,6.7128]
[1719285057711,16.2,134.13,134.08,16.7803]
[1719285057921,16.2,134.13,134.1,6.711]
[1719285058121,100.0,134.12,134.08,16.7803]
[1719285058794,100.0,134.12,134.08,23.4926]
[1719285059492,16.2,134.13,134.08,16.7803]
[1719285059689,122.4104,134.17,134.11,6.7108]
[1719285059894,6.4859,134.18,134.09,0.5011]
[1719285060096,81.0044,134.28,134.09,0.5011]
[1719285060097,6.3327,134.22,134.1,0.17]
[1719285060289,21.4549,134.26,134.18,16.7676]
[1719285060485,100.0,134.25,134.2,6.7059]
[1719285060688,100.0,134.25,134.2,16.7649]
[1719285060906,21.4549,134.26,134.2,16.7649]
[1719285061124,100.0,134.25,134.22,6.7053]
[1719285061286,6.3327,134.26,134.23,6.7047]
[1719285061890,100.0,134.27,134.22,16.7625]
[1719285062190,15.9224,134.34,134.21,0.17]
[1719285062398,6.6484,134.35,134.22,15.945]
[1719285062610,100.0,134.37,134.23,25.17]
[1719285062929,6.7,134.33,134.25,6.7034]
[1719285063219,100.0,134.35,134.26,16.7573]
[1719285063220,100.0,134.34,134.26,16.7573]
[1719285063419,100.0,134.34,134.28,6.7023]
[1719285063900,100.0,134.32,134.28,6.7022]
[1719285064098,200.0,134.37,134.26,16.7573]
[1719285064306,100.0,134.35,134.29,6.7018]
[1719285064492,6.6996,134.34,134.27,6.7028]
[1719285064816,100.0,134.32,134.2,33.5315]
[1719285064998,100.0,134.35,134.25,16.7595]
[1719285064999,200.0,134.35,134.25,16.7595]
[1719285065198,200.0,134.33,134.25,16.7595]
[1719285065393,6.7004,134.32,134.25,16.7595]
[1719285065601,100.0,134.37,134.28,16.7558]
[1719285065800,206.6563,134.39,134.28,16.7558]
[1719285066116,200.0,134.37,134.29,6.7014]
[1719285066303,6.6995,134.34,134.28,16.7558]
[1719285066818,106.6999,134.33,134.26,6.7033]
[1719285067125,200.0,134.33,134.25,16.7597]
[1719285067302,6.7006,134.32,134.26,6.7033]
[1719285067497,200.0,134.33,134.25,16.7597]